{"text_format":"1","workbook":"xlsx","n_sheets":2,"sheets":["Sheet1","Sheet0"],"not_rendered":{"charts":0,"images":1,"macros":1,"external_links":0,"defined_names":40,"comments":0,"pivot_tables":0},"unopened":[],"bounds":{"document_bytes":16777216,"sheet_cells":100000,"rows_first":2000,"rows_last":500,"rows_between":2000,"halvings":0,"cell_chars":16384,"cell_head_chars":4096},"cells_cut":0,"cells_raw":0,"read":"whole","date_system":"1900"}

{"sheet":"Sheet1","index":0,"n_rows":632,"n_cols":67,"rows_kept":632,"cut":false,"hidden":true,"merged":[[625,42,627,69],[628,5,629,32],[628,36,630,69],[631,36,635,69],[569,23,571,69],[572,23,574,69],[611,58,622,69],[613,3,618,6],[613,7,618,26],[613,27,618,30],[615,34,618,44],[615,45,618,56],[619,5,620,30],[619,34,622,44],[619,45,622,56],[607,3,610,26],[607,27,610,30],[607,34,610,44],[607,45,610,56],[611,34,614,44],[611,45,614,56],[590,66,592,69],[593,4,595,22],[596,4,598,22],[599,4,600,69],[603,4,605,69],[590,4,592,22],[590,23,592,34],[590,35,592,38],[578,4,580,22],[578,23,583,69],[581,4,583,22],[590,39,592,50],[590,51,592,54],[590,55,592,65],[584,4,586,22],[584,23,586,57],[584,58,586,69],[587,4,589,22],[587,23,589,38],[587,39,589,69],[593,23,595,69],[596,23,598,69],[556,34,558,48],[556,49,558,69],[559,34,561,48],[559,49,561,69],[564,4,565,48],[567,2,568,69],[569,4,571,22],[572,4,574,22],[575,4,577,22],[575,23,577,69],[542,4,544,31],[544,34,546,48],[544,49,546,69],[547,34,549,48],[547,49,549,69],[550,34,552,48],[550,49,552,69],[553,34,555,48],[553,49,555,69],[519,42,521,69],[522,5,523,32],[522,36,524,69],[530,4,533,48],[534,4,536,38],[536,46,538,57],[536,58,538,69],[539,46,541,69],[540,4,541,19],[525,36,529,69],[493,4,494,69],[497,4,499,69],[501,3,504,26],[501,27,504,30],[501,34,504,44],[501,45,504,56],[505,34,508,44],[505,45,508,56],[505,58,516,69],[507,3,512,6],[507,7,512,26],[507,27,512,30],[509,34,512,44],[509,45,512,56],[513,5,514,30],[513,34,516,44],[513,45,516,56],[484,4,486,22],[484,23,486,34],[484,35,486,38],[484,39,486,50],[484,51,486,54],[484,55,486,65],[484,66,486,69],[487,4,489,22],[490,4,492,22],[487,23,489,69],[490,23,492,69],[469,4,471,22],[469,23,471,69],[472,4,474,22],[472,23,477,69],[475,4,477,22],[478,4,480,22],[478,23,480,57],[478,58,480,69],[481,4,483,22],[481,23,483,38],[481,39,483,69],[450,34,452,48],[450,49,452,69],[453,34,455,48],[453,49,455,69],[458,4,459,48],[461,2,462,69],[463,4,465,22],[466,4,468,22],[463,23,465,69],[466,23,468,69],[436,4,438,31],[438,34,440,48],[438,49,440,69],[441,34,443,48],[441,49,443,69],[444,34,446,48],[444,49,446,69],[447,34,449,48],[447,49,449,69],[413,42,415,69],[416,5,417,32],[416,36,418,69],[419,36,423,69],[424,4,427,48],[428,4,430,38],[430,46,432,57],[430,58,432,69],[433,46,435,69],[434,4,435,19],[395,3,398,26],[395,27,398,30],[395,34,398,44],[395,45,398,56],[399,34,402,44],[399,45,402,56],[399,58,410,69],[401,3,406,6],[401,7,406,26],[401,27,406,30],[403,34,406,44],[403,45,406,56],[407,5,408,30],[407,34,410,44],[407,45,410,56],[381,4,383,22],[384,4,386,22],[387,4,388,69],[391,4,393,69],[378,4,380,22],[378,23,380,34],[378,35,380,38],[378,39,380,50],[381,23,383,69],[384,23,386,69],[366,4,368,22],[366,23,371,69],[369,4,371,22],[357,23,359,69],[360,23,362,69],[378,51,380,54],[378,55,380,65],[372,4,374,22],[372,23,374,57],[372,58,374,69],[375,4,377,22],[375,23,377,38],[375,39,377,69],[378,66,380,69],[344,34,346,48],[344,49,346,69],[347,34,349,48],[347,49,349,69],[352,4,353,48],[355,2,356,69],[357,4,359,22],[360,4,362,22],[363,4,365,22],[363,23,365,69],[330,4,332,31],[332,34,334,48],[332,49,334,69],[335,34,337,48],[335,49,337,69],[338,34,340,48],[338,49,340,69],[341,34,343,48],[341,49,343,69],[307,41,309,68],[310,4,311,31],[310,35,312,68],[313,35,317,68],[318,4,321,48],[322,4,324,38],[324,46,326,57],[324,58,326,69],[327,46,329,69],[328,4,329,19],[281,3,282,68],[285,3,287,68],[289,2,292,25],[289,26,292,29],[289,33,292,43],[289,44,292,55],[293,33,296,43],[293,44,296,55],[293,57,304,68],[295,2,300,5],[295,6,300,25],[295,26,300,29],[297,33,300,43],[297,44,300,55],[301,4,302,29],[301,33,304,43],[301,44,304,55],[272,3,274,21],[272,22,274,33],[272,34,274,37],[272,38,274,49],[272,50,274,53],[272,54,274,64],[272,65,274,68],[275,3,277,21],[278,3,280,21],[275,22,277,68],[278,22,280,68],[257,3,259,21],[257,22,259,68],[260,3,262,21],[260,22,265,68],[263,3,265,21],[266,3,268,21],[266,22,268,56],[266,57,268,68],[269,3,271,21],[269,22,271,37],[269,38,271,68],[238,33,240,47],[238,48,240,68],[241,33,243,47],[241,48,243,68],[246,3,247,47],[249,1,250,68],[251,3,253,21],[254,3,256,21],[251,22,253,68],[254,22,256,68],[224,3,226,30],[226,33,228,47],[226,48,228,68],[229,33,231,47],[229,48,231,68],[232,33,234,47],[232,48,234,68],[235,33,237,47],[235,48,237,68],[201,41,203,68],[204,4,205,31],[204,35,206,68],[207,35,211,68],[212,3,215,47],[216,3,218,37],[218,45,220,56],[218,57,220,68],[221,45,223,68],[222,3,223,18],[183,2,186,25],[183,26,186,29],[183,33,186,43],[183,44,186,55],[187,33,190,43],[187,44,190,55],[187,57,198,68],[189,2,194,5],[189,6,194,25],[189,26,194,29],[191,33,194,43],[191,44,194,55],[195,4,196,29],[195,33,198,43],[195,44,198,55],[169,3,171,21],[172,3,174,21],[175,3,176,68],[179,3,181,68],[166,3,168,21],[166,22,168,33],[166,34,168,37],[166,38,168,49],[169,22,171,68],[172,22,174,68],[154,3,156,21],[154,22,159,68],[157,3,159,21],[145,22,147,68],[148,22,150,68],[166,50,168,53],[166,54,168,64],[160,3,162,21],[160,22,162,56],[160,57,162,68],[163,3,165,21],[163,22,165,37],[163,38,165,68],[166,65,168,68],[132,33,134,47],[132,48,134,68],[135,33,137,47],[135,48,137,68],[140,3,141,47],[143,1,144,68],[145,3,147,21],[148,3,150,21],[151,3,153,21],[151,22,153,68],[118,3,120,30],[120,33,122,47],[120,48,122,68],[123,33,125,47],[123,48,125,68],[126,33,128,47],[126,48,128,68],[129,33,131,47],[129,48,131,68],[95,41,97,68],[98,4,99,31],[98,35,100,68],[101,35,105,68],[106,3,109,47],[110,3,112,37],[112,45,114,56],[112,57,114,68],[115,45,117,68],[116,3,117,18],[81,33,84,43],[81,44,84,55],[81,57,92,68],[83,2,88,5],[83,6,88,25],[83,26,88,29],[85,33,88,43],[85,44,88,55],[89,4,90,29],[89,33,92,43],[89,44,92,55],[63,3,65,21],[66,3,68,21],[69,3,70,68],[73,3,75,68],[77,2,80,25],[77,26,80,29],[77,33,80,43],[77,44,80,55],[63,22,65,68],[66,22,68,68],[54,3,56,21],[54,22,56,56],[54,57,56,68],[57,3,59,21],[57,22,59,37],[57,38,59,68],[60,3,62,21],[60,22,62,33],[60,34,62,37],[60,38,62,49],[60,50,62,53],[60,54,62,64],[60,65,62,68],[34,3,35,47],[37,1,38,68],[39,3,41,21],[42,3,44,21],[45,3,47,21],[45,22,47,68],[39,22,41,68],[42,22,44,68],[48,3,50,21],[48,22,53,68],[51,3,53,21],[17,33,19,47],[17,48,19,68],[20,33,22,47],[20,48,22,68],[23,33,25,47],[23,48,25,68],[26,33,28,47],[26,48,28,68],[29,33,31,47],[29,48,31,68],[0,3,3,47],[4,3,6,37],[6,45,8,56],[6,57,8,68],[9,45,11,68],[10,3,11,18],[12,3,14,30],[14,33,16,47],[14,48,16,68]]}
[null,null,null,"浄化槽（第7条）法定検査依頼書"]
[]
[]
[]
[null,null,null,"（協 会 本 部 用）"]
[]
[null,null,null,null,null,null,null,null,null,null,null,null,null,null,null,null,null,null,null,null,null,null,null,null,null,null,null,null,null,null,null,null,null,null,null,null,null,null,null,null,null,null,null,null,null,"支部番号"]
[]
[]
[null,null,null,null,null,null,null,null,null,null,null,null,null,null,null,null,null,null,null,null,null,null,null,null,null,null,null,null,null,null,null,null,null,null,null,null,null,null,null,null,null,null,null,null,null,"　　　　年度　　　　　番"]
[null,null,null,"栃木県指定検査機関"]
[]
[null,null,null,"一般社団法人　栃木県浄化槽協会殿"]
[]
[null,null,null,null,null,null,null,null,null,null,null,null,null,null,null,null,null,null,null,null,null,null,null,null,null,null,null,null,null,null,null,null,null,"依頼者（設置者）氏名",null,null,null,null,null,null,null,null,null,null,null,null,null,null,{"$f":"AX545","v":0}]
[]
[]
[null,null,null,null,null,null,null,null,null,null,null,null,null,null,null,null,null,null,null,null,null,null,null,null,null,null,null,null,null,null,null,null,null,"手 続 代 行 者"]
[]
[]
[null,null,null,null,null,null,null,null,null,null,null,null,null,null,null,null,null,null,null,null,null,null,null,null,null,null,null,null,null,null,null,null,null,"住所",null,null,null,null,null,null,null,null,null,null,null,null,null,null,{"$f":"AX551","v":0}]
[]
[]
[null,null,null,null,null,null,null,null,null,null,null,null,null,null,null,null,null,null,null,null,null,null,null,null,null,null,null,null,null,null,null,null,null,"商号又は氏名 ",null,null,null,null,null,null,null,null,null,null,null,null,null,null,{"$f":"AX554","v":0}]
[]
[]
[null,null,null,null,null,null,null,null,null,null,null,null,null,null,null,null,null,null,null,null,null,null,null,null,null,null,null,null,null,null,null,null,null,"電話番号",null,null,null,null,null,null,null,null,null,null,null,null,null,null,{"$f":"AX557","v":0}]
[]
[]
[null,null,null,null,null,null,null,null,null,null,null,null,null,null,null,null,null,null,null,null,null,null,null,null,null,null,null,null,null,null,null,null,null,"F A X番号",null,null,null,null,null,null,null,null,null,null,null,null,null,null,{"$f":"AX560","v":0}]
[]
[]
[]
[]
[null,null,null,"浄化槽法第7条の規定により下記浄化槽の法定検査を依頼します。"]
[]
[]
[null,"記"]
[]
[null,null,null,"設置者名",null,null,null,null,null,null,null,null,null,null,null,null,null,null,null,null,null,null,{"$f":"X570","v":0}]
[]
[]
[null,null,null,"同 住所",null,null,null,null,null,null,null,null,null,null,null,null,null,null,null,null,null,null,{"$f":"X573","v":0}]
[]
[]
[null,null,null,"同電話番号",null,null,null,null,null,null,null,null,null,null,null,null,null,null,null,null,null,null,{"$f":"X576","v":0}]
[]
[]
[null,null,null,"設置場所",null,null,null,null,null,null,null,null,null,null,null,null,null,null,null,null,null,null,{"$f":"X579","v":0}]
[]
[]
[null,null,null,"同名称"]
[]
[]
[null,null,null,"人槽",null,null,null,null,null,null,null,null,null,null,null,null,null,null,null,null,null,null,{"$f":"X585","v":0},null,null,null,null,null,null,null,null,null,null,null,null,null,null,null,null,null,null,null,null,null,null,null,null,null,null,null,null,null,null,null,null,null,null,"人槽"]
[]
[]
[null,null,null,"建築用途別番号",null,null,null,null,null,null,null,null,null,null,null,null,null,null,null,null,null,null,"（例　個人住宅２－イ）",null,null,null,null,null,null,null,null,null,null,null,null,null,null,null,{"$f":"AN588","v":0}]
[]
[]
[null,null,null,"浄化槽使用開始予定年月日",null,null,null,null,null,null,null,null,null,null,null,null,null,null,null,null,null,null,{"$f":"X591","v":0},null,null,null,null,null,null,null,null,null,null,null,"年",null,null,null,{"$f":"AN591","v":0},null,null,null,null,null,null,null,null,null,null,null,"月",null,null,null,{"$f":"BD591","v":0},null,null,null,null,null,null,null,null,null,null,"日"]
[]
[]
[null,null,null,"メーカー",null,null,null,null,null,null,null,null,null,null,null,null,null,null,null,null,null,null,{"$f":"メーカー","v":0}]
[]
[]
[null,null,null,"浄化槽型式",null,null,null,null,null,null,null,null,null,null,null,null,null,null,null,null,null,null,{"$f":"浄化槽型式","v":0}]
[]
[]
[null,null,null,"　（注）１．付近の見取図の写しを1部添付して下さい。（道路及び目標となる地物を明示すること。）"]
[]
[]
[]
[null,null,null,"領　　収　　書　（控）"]
[]
[]
[]
[null,null,{"$f":"D608","v":0},null,null,null,null,null,null,null,null,null,null,null,null,null,null,null,null,null,null,null,null,null,null,null,"殿",null,null,null,null,null,null,"人　　槽",null,null,null,null,null,null,null,null,null,null,"７条検査料"]
[]
[]
[]
[null,null,null,null,null,null,null,null,null,null,null,null,null,null,null,null,null,null,null,null,null,null,null,null,null,null,null,null,null,null,null,null,null,"50人以下",null,null,null,null,null,null,null,null,null,null,"９，０００円",null,null,null,null,null,null,null,null,null,null,null,null,"協会受付印"]
[]
[null,null,"金",null,null,null,{"$f":"H614","v":""},null,null,null,null,null,null,null,null,null,null,null,null,null,null,null,null,null,null,null,"円也"]
[]
[null,null,null,null,null,null,null,null,null,null,null,null,null,null,null,null,null,null,null,null,null,null,null,null,null,null,null,null,null,null,null,null,null,"51人～500人",null,null,null,null,null,null,null,null,null,null,"１５，０００円"]
[]
[]
[]
[null,null,null,null,"但し、浄化槽法第７条検査料金",null,null,null,null,null,null,null,null,null,null,null,null,null,null,null,null,null,null,null,null,null,null,null,null,null,null,null,null,"501人以上",null,null,null,null,null,null,null,null,null,null,"３２，０００円"]
[]
[]
[]
[]
[]
[null,null,null,null,null,null,null,null,null,null,null,null,null,null,null,null,null,null,null,null,null,null,null,null,null,null,null,null,null,null,null,null,null,null,null,null,null,null,null,null,null,"宇都宮市簗瀬町２３９０番地"]
[]
[]
[null,null,null,null,"上記のとおり領収しました。",null,null,null,null,null,null,null,null,null,null,null,null,null,null,null,null,null,null,null,null,null,null,null,null,null,null,null,null,null,null,"電話　０２８（６３３）１６５０番(代)"]
[]
[]
[null,null,null,null,null,null,null,null,null,null,null,null,null,null,null,null,null,null,null,null,null,null,null,null,null,null,null,null,null,null,null,null,null,null,null,"一般社団法人　栃 木 県 浄 化 槽 協 会"]
[]
[]
[]
[]
[null,null,null,"浄化槽（第7条）法定検査依頼書"]
[]
[]
[]
[null,null,null,"（支部控用）"]
[]
[null,null,null,null,null,null,null,null,null,null,null,null,null,null,null,null,null,null,null,null,null,null,null,null,null,null,null,null,null,null,null,null,null,null,null,null,null,null,null,null,null,null,null,null,null,"支部番号"]
[]
[]
[null,null,null,null,null,null,null,null,null,null,null,null,null,null,null,null,null,null,null,null,null,null,null,null,null,null,null,null,null,null,null,null,null,null,null,null,null,null,null,null,null,null,null,null,null,"　　　　年度　　　　　番"]
[null,null,null,"栃木県指定検査機関"]
[]
[null,null,null,"一般社団法人　栃木県浄化槽協会殿"]
[]
[null,null,null,null,null,null,null,null,null,null,null,null,null,null,null,null,null,null,null,null,null,null,null,null,null,null,null,null,null,null,null,null,null,"依頼者（設置者）氏名",null,null,null,null,null,null,null,null,null,null,null,null,null,null,{"$f":"AW15","v":0}]
[]
[]
[null,null,null,null,null,null,null,null,null,null,null,null,null,null,null,null,null,null,null,null,null,null,null,null,null,null,null,null,null,null,null,null,null,"手 続 代 行 者"]
[]
[]
[null,null,null,null,null,null,null,null,null,null,null,null,null,null,null,null,null,null,null,null,null,null,null,null,null,null,null,null,null,null,null,null,null,"住所",null,null,null,null,null,null,null,null,null,null,null,null,null,null,{"$f":"AW21","v":0}]
[]
[]
[null,null,null,null,null,null,null,null,null,null,null,null,null,null,null,null,null,null,null,null,null,null,null,null,null,null,null,null,null,null,null,null,null,"商号又は氏名 ",null,null,null,null,null,null,null,null,null,null,null,null,null,null,{"$f":"AW24","v":0}]
[]
[]
[null,null,null,null,null,null,null,null,null,null,null,null,null,null,null,null,null,null,null,null,null,null,null,null,null,null,null,null,null,null,null,null,null,"電話番号",null,null,null,null,null,null,null,null,null,null,null,null,null,null,{"$f":"AW27","v":0}]
[]
[]
[null,null,null,null,null,null,null,null,null,null,null,null,null,null,null,null,null,null,null,null,null,null,null,null,null,null,null,null,null,null,null,null,null,"F A X番号",null,null,null,null,null,null,null,null,null,null,null,null,null,null,{"$f":"AW30","v":0}]
[]
[]
[]
[]
[null,null,null,"浄化槽法第7条の規定により下記浄化槽の法定検査を依頼します。"]
[]
[]
[null,"記"]
[]
[null,null,null,"設置者名",null,null,null,null,null,null,null,null,null,null,null,null,null,null,null,null,null,null,{"$f":"W40","v":0}]
[]
[]
[null,null,null,"同 住所",null,null,null,null,null,null,null,null,null,null,null,null,null,null,null,null,null,null,{"$f":"W43","v":0}]
[]
[]
[null,null,null,"同電話番号",null,null,null,null,null,null,null,null,null,null,null,null,null,null,null,null,null,null,{"$f":"W46","v":0}]
[]
[]
[null,null,null,"設置場所",null,null,null,null,null,null,null,null,null,null,null,null,null,null,null,null,null,null,{"$f":"W49","v":0}]
[]
[]
[null,null,null,"同名称"]
[]
[]
[null,null,null,"人槽",null,null,null,null,null,null,null,null,null,null,null,null,null,null,null,null,null,null,{"$f":"W55","v":0},null,null,null,null,null,null,null,null,null,null,null,null,null,null,null,null,null,null,null,null,null,null,null,null,null,null,null,null,null,null,null,null,null,null,"人槽"]
[]
[]
[null,null,null,"建築用途別番号",null,null,null,null,null,null,null,null,null,null,null,null,null,null,null,null,null,null,"（例　個人住宅２－イ）",null,null,null,null,null,null,null,null,null,null,null,null,null,null,null,{"$f":"AM58","v":0}]
[]
[]
[null,null,null,"浄化槽使用開始予定年月日",null,null,null,null,null,null,null,null,null,null,null,null,null,null,null,null,null,null,{"$f":"W61","v":0},null,null,null,null,null,null,null,null,null,null,null,"年",null,null,null,{"$f":"AM61","v":0},null,null,null,null,null,null,null,null,null,null,null,"月",null,null,null,{"$f":"BC61","v":0},null,null,null,null,null,null,null,null,null,null,"日"]
[]
[]
[null,null,null,"メーカー",null,null,null,null,null,null,null,null,null,null,null,null,null,null,null,null,null,null,{"$f":"メーカー","v":0}]
[]
[]
[null,null,null,"浄化槽型式",null,null,null,null,null,null,null,null,null,null,null,null,null,null,null,null,null,null,{"$f":"浄化槽型式","v":0}]
[]
[]
[null,null,null,"　（注）１．付近の見取図の写しを1部添付して下さい。（道路及び目標となる地物を明示すること。）"]
[]
[]
[]
[null,null,null,"領　　収　　書　（控）"]
[]
[]
[]
[null,null,{"$f":"C78","v":0},null,null,null,null,null,null,null,null,null,null,null,null,null,null,null,null,null,null,null,null,null,null,null,"殿",null,null,null,null,null,null,"人　　槽",null,null,null,null,null,null,null,null,null,null,"７条検査料"]
[]
[]
[]
[null,null,null,null,null,null,null,null,null,null,null,null,null,null,null,null,null,null,null,null,null,null,null,null,null,null,null,null,null,null,null,null,null,"50人以下",null,null,null,null,null,null,null,null,null,null,"９，０００円",null,null,null,null,null,null,null,null,null,null,null,null,"協会受付印"]
[]
[null,null,"金",null,null,null,{"$f":"G84","v":""},null,null,null,null,null,null,null,null,null,null,null,null,null,null,null,null,null,null,null,"円也"]
[]
[null,null,null,null,null,null,null,null,null,null,null,null,null,null,null,null,null,null,null,null,null,null,null,null,null,null,null,null,null,null,null,null,null,"51人～500人",null,null,null,null,null,null,null,null,null,null,"１５，０００円"]
[]
[]
[]
[null,null,null,null,"但し、浄化槽法第７条検査料金",null,null,null,null,null,null,null,null,null,null,null,null,null,null,null,null,null,null,null,null,null,null,null,null,null,null,null,null,"501人以上",null,null,null,null,null,null,null,null,null,null,"３２，０００円"]
[]
[]
[]
[]
[]
[null,null,null,null,null,null,null,null,null,null,null,null,null,null,null,null,null,null,null,null,null,null,null,null,null,null,null,null,null,null,null,null,null,null,null,null,null,null,null,null,null,"宇都宮市簗瀬町２３９０番地"]
[]
[]
[null,null,null,null,"上記のとおり領収しました。",null,null,null,null,null,null,null,null,null,null,null,null,null,null,null,null,null,null,null,null,null,null,null,null,null,null,null,null,null,null,"電話　０２８（６３３）１６５０番(代)"]
[]
[]
[null,null,null,null,null,null,null,null,null,null,null,null,null,null,null,null,null,null,null,null,null,null,null,null,null,null,null,null,null,null,null,null,null,null,null,"一般社団法人　栃 木 県 浄 化 槽 協 会"]
[]
[]
[]
[]
[null,null,null,"浄化槽（第7条）法定検査依頼書"]
[]
[]
[]
[null,null,null,"（建　主　用）"]
[]
[null,null,null,null,null,null,null,null,null,null,null,null,null,null,null,null,null,null,null,null,null,null,null,null,null,null,null,null,null,null,null,null,null,null,null,null,null,null,null,null,null,null,null,null,null,"支部番号"]
[]
[]
[null,null,null,null,null,null,null,null,null,null,null,null,null,null,null,null,null,null,null,null,null,null,null,null,null,null,null,null,null,null,null,null,null,null,null,null,null,null,null,null,null,null,null,null,null,"　　　　年度　　　　　番"]
[null,null,null,"栃木県指定検査機関"]
[]
[null,null,null,"一般社団法人　栃木県浄化槽協会殿"]
[]
[null,null,null,null,null,null,null,null,null,null,null,null,null,null,null,null,null,null,null,null,null,null,null,null,null,null,null,null,null,null,null,null,null,"依頼者（設置者）氏名",null,null,null,null,null,null,null,null,null,null,null,null,null,null,{"$f":"AW15","v":0}]
[]
[]
[null,null,null,null,null,null,null,null,null,null,null,null,null,null,null,null,null,null,null,null,null,null,null,null,null,null,null,null,null,null,null,null,null,"手 続 代 行 者",null,null,null,null,null,null,null,null,null,null,null,null,null,null,{"$f":"AW18","v":0}]
[]
[]
[null,null,null,null,null,null,null,null,null,null,null,null,null,null,null,null,null,null,null,null,null,null,null,null,null,null,null,null,null,null,null,null,null,"住所",null,null,null,null,null,null,null,null,null,null,null,null,null,null,{"$f":"AW21","v":0}]
[]
[]
[null,null,null,null,null,null,null,null,null,null,null,null,null,null,null,null,null,null,null,null,null,null,null,null,null,null,null,null,null,null,null,null,null,"商号又は氏名 ",null,null,null,null,null,null,null,null,null,null,null,null,null,null,{"$f":"AW24","v":0}]
[]
[]
[null,null,null,null,null,null,null,null,null,null,null,null,null,null,null,null,null,null,null,null,null,null,null,null,null,null,null,null,null,null,null,null,null,"電話番号",null,null,null,null,null,null,null,null,null,null,null,null,null,null,{"$f":"AW27","v":0}]
[]
[]
[null,null,null,null,null,null,null,null,null,null,null,null,null,null,null,null,null,null,null,null,null,null,null,null,null,null,null,null,null,null,null,null,null,"F A X番号",null,null,null,null,null,null,null,null,null,null,null,null,null,null,{"$f":"AW30","v":0}]
[]
[]
[]
[]
[null,null,null,"浄化槽法第7条の規定により下記浄化槽の法定検査を依頼します。"]
[]
[]
[null,"記"]
[]
[null,null,null,"設置者名",null,null,null,null,null,null,null,null,null,null,null,null,null,null,null,null,null,null,{"$f":"W40","v":0}]
[]
[]
[null,null,null,"同 住所",null,null,null,null,null,null,null,null,null,null,null,null,null,null,null,null,null,null,{"$f":"W43","v":0}]
[]
[]
[null,null,null,"同電話番号",null,null,null,null,null,null,null,null,null,null,null,null,null,null,null,null,null,null,{"$f":"W46","v":0}]
[]
[]
[null,null,null,"設置場所",null,null,null,null,null,null,null,null,null,null,null,null,null,null,null,null,null,null,{"$f":"W49","v":0}]
[]
[]
[null,null,null,"同名称"]
[]
[]
[null,null,null,"人槽",null,null,null,null,null,null,null,null,null,null,null,null,null,null,null,null,null,null,{"$f":"W55","v":0},null,null,null,null,null,null,null,null,null,null,null,null,null,null,null,null,null,null,null,null,null,null,null,null,null,null,null,null,null,null,null,null,null,null,"人槽"]
[]
[]
[null,null,null,"建築用途別番号",null,null,null,null,null,null,null,null,null,null,null,null,null,null,null,null,null,null,"（例　個人住宅２－イ）",null,null,null,null,null,null,null,null,null,null,null,null,null,null,null,{"$f":"AM58","v":0}]
[]
[]
[null,null,null,"浄化槽使用開始予定年月日",null,null,null,null,null,null,null,null,null,null,null,null,null,null,null,null,null,null,{"$f":"W61","v":0},null,null,null,null,null,null,null,null,null,null,null,"年",null,null,null,{"$f":"AM61","v":0},null,null,null,null,null,null,null,null,null,null,null,"月",null,null,null,{"$f":"BC61","v":0},null,null,null,null,null,null,null,null,null,null,"日"]
[]
[]
[null,null,null,"メーカー",null,null,null,null,null,null,null,null,null,null,null,null,null,null,null,null,null,null,{"$f":"メーカー","v":0}]
[]
[]
[null,null,null,"浄化槽型式",null,null,null,null,null,null,null,null,null,null,null,null,null,null,null,null,null,null,{"$f":"浄化槽型式","v":0}]
[]
[]
[null,null,null,"　（注）１．付近の見取図の写しを1部添付して下さい。（道路及び目標となる地物を明示すること。）"]
[]
[]
[]
[null,null,null,"領　　収　　書"]
[]
[]
[]
[null,null,{"$f":"C78","v":0},null,null,null,null,null,null,null,null,null,null,null,null,null,null,null,null,null,null,null,null,null,null,null,"殿",null,null,null,null,null,null,"人　　槽",null,null,null,null,null,null,null,null,null,null,"７条検査料"]
[]
[]
[]
[null,null,null,null,null,null,null,null,null,null,null,null,null,null,null,null,null,null,null,null,null,null,null,null,null,null,null,null,null,null,null,null,null,"50人以下",null,null,null,null,null,null,null,null,null,null,"９，０００円",null,null,null,null,null,null,null,null,null,null,null,null,"協会受付印"]
[]
[null,null,"金",null,null,null,{"$f":"G84","v":""},null,null,null,null,null,null,null,null,null,null,null,null,null,null,null,null,null,null,null,"円也"]
[]
[null,null,null,null,null,null,null,null,null,null,null,null,null,null,null,null,null,null,null,null,null,null,null,null,null,null,null,null,null,null,null,null,null,"51人～500人",null,null,null,null,null,null,null,null,null,null,"１５，０００円"]
[]
[]
[]
[null,null,null,null,"但し、浄化槽法第７条検査料金",null,null,null,null,null,null,null,null,null,null,null,null,null,null,null,null,null,null,null,null,null,null,null,null,null,null,null,null,"501人以上",null,null,null,null,null,null,null,null,null,null,"３２，０００円"]
[]
[]
[]
[]
[]
[null,null,null,null,null,null,null,null,null,null,null,null,null,null,null,null,null,null,null,null,null,null,null,null,null,null,null,null,null,null,null,null,null,null,null,null,null,null,null,null,null,"宇都宮市簗瀬町２３９０番地"]
[]
[]
[null,null,null,null,"上記のとおり領収しました。",null,null,null,null,null,null,null,null,null,null,null,null,null,null,null,null,null,null,null,null,null,null,null,null,null,null,null,null,null,null,"電話　０２８（６３３）１６５０番(代)"]
[]
[]
[null,null,null,null,null,null,null,null,null,null,null,null,null,null,null,null,null,null,null,null,null,null,null,null,null,null,null,null,null,null,null,null,null,null,null,"一般社団法人　栃 木 県 浄 化 槽 協 会"]
[]
[]
[]
[]
[null,null,null,null,"浄化槽（第7条）法定検査依頼書"]
[]
[]
[]
[]
[]
[null,null,null,null,null,null,null,null,null,null,null,null,null,null,null,null,null,null,null,null,null,null,null,null,null,null,null,null,null,null,null,null,null,null,null,null,null,null,null,null,null,null,null,null,null,null,"支部番号"]
[]
[]
[null,null,null,null,null,null,null,null,null,null,null,null,null,null,null,null,null,null,null,null,null,null,null,null,null,null,null,null,null,null,null,null,null,null,null,null,null,null,null,null,null,null,null,null,null,null,"　　　　年度　　　　　番"]
[null,null,null,null,"栃木県指定検査機関"]
[]
[null,null,null,null,"一般社団法人　栃木県浄化槽協会殿"]
[]
[null,null,null,null,null,null,null,null,null,null,null,null,null,null,null,null,null,null,null,null,null,null,null,null,null,null,null,null,null,null,null,null,null,null,"依頼者（設置者）氏名",null,null,null,null,null,null,null,null,null,null,null,null,null,null,{"$f":"AW15","v":0}]
[]
[]
[null,null,null,null,null,null,null,null,null,null,null,null,null,null,null,null,null,null,null,null,null,null,null,null,null,null,null,null,null,null,null,null,null,null,"手 続 代 行 者"]
[]
[]
[null,null,null,null,null,null,null,null,null,null,null,null,null,null,null,null,null,null,null,null,null,null,null,null,null,null,null,null,null,null,null,null,null,null,"住所",null,null,null,null,null,null,null,null,null,null,null,null,null,null,{"$f":"AW21","v":0}]
[]
[]
[null,null,null,null,null,null,null,null,null,null,null,null,null,null,null,null,null,null,null,null,null,null,null,null,null,null,null,null,null,null,null,null,null,null,"商号又は氏名 ",null,null,null,null,null,null,null,null,null,null,null,null,null,null,{"$f":"AW24","v":0}]
[]
[]
[null,null,null,null,null,null,null,null,null,null,null,null,null,null,null,null,null,null,null,null,null,null,null,null,null,null,null,null,null,null,null,null,null,null,"電話番号",null,null,null,null,null,null,null,null,null,null,null,null,null,null,{"$f":"AW27","v":0}]
[]
[]
[null,null,null,null,null,null,null,null,null,null,null,null,null,null,null,null,null,null,null,null,null,null,null,null,null,null,null,null,null,null,null,null,null,null,"F A X番号",null,null,null,null,null,null,null,null,null,null,null,null,null,null,{"$f":"AW30","v":0}]
[]
[]
[]
[]
[null,null,null,null,"浄化槽法第7条の規定により下記浄化槽の法定検査を依頼します。"]
[]
[]
[null,null,"記"]
[]
[null,null,null,null,"設置者名",null,null,null,null,null,null,null,null,null,null,null,null,null,null,null,null,null,null,{"$f":"W40","v":0}]
[]
[]
[null,null,null,null,"同 住所",null,null,null,null,null,null,null,null,null,null,null,null,null,null,null,null,null,null,{"$f":"W43","v":0}]
[]
[]
[null,null,null,null,"同電話番号",null,null,null,null,null,null,null,null,null,null,null,null,null,null,null,null,null,null,{"$f":"W46","v":0}]
[]
[]
[null,null,null,null,"設置場所",null,null,null,null,null,null,null,null,null,null,null,null,null,null,null,null,null,null,{"$f":"W49","v":0}]
[]
[]
[null,null,null,null,"同名称"]
[]
[]
[null,null,null,null,"人槽",null,null,null,null,null,null,null,null,null,null,null,null,null,null,null,null,null,null,{"$f":"W55","v":0},null,null,null,null,null,null,null,null,null,null,null,null,null,null,null,null,null,null,null,null,null,null,null,null,null,null,null,null,null,null,null,null,null,null,"人槽"]
[]
[]
[null,null,null,null,"建築用途別番号",null,null,null,null,null,null,null,null,null,null,null,null,null,null,null,null,null,null,"（例　個人住宅２－イ）",null,null,null,null,null,null,null,null,null,null,null,null,null,null,null,{"$f":"AM58","v":0}]
[]
[]
[null,null,null,null,"浄化槽使用開始予定年月日",null,null,null,null,null,null,null,null,null,null,null,null,null,null,null,null,null,null,{"$f":"W61","v":0},null,null,null,null,null,null,null,null,null,null,null,"年",null,null,null,{"$f":"AM61","v":0},null,null,null,null,null,null,null,null,null,null,null,"月",null,null,null,{"$f":"BC61","v":0},null,null,null,null,null,null,null,null,null,null,"日"]
[]
[]
[null,null,null,null,"メーカー",null,null,null,null,null,null,null,null,null,null,null,null,null,null,null,null,null,null,{"$f":"メーカー","v":0}]
[]
[]
[null,null,null,null,"浄化槽型式",null,null,null,null,null,null,null,null,null,null,null,null,null,null,null,null,null,null,{"$f":"浄化槽型式","v":0}]
[]
[]
[null,null,null,null,"　（注）１．付近の見取図の写しを1部添付して下さい。（道路及び目標となる地物を明示すること。）"]
[]
[]
[]
[null,null,null,null,"領　　収　　書　（写）"]
[]
[]
[]
[null,null,null,{"$f":"C78","v":0},null,null,null,null,null,null,null,null,null,null,null,null,null,null,null,null,null,null,null,null,null,null,null,"殿",null,null,null,null,null,null,"人　　槽",null,null,null,null,null,null,null,null,null,null,"７条検査料"]
[]
[]
[]
[null,null,null,null,null,null,null,null,null,null,null,null,null,null,null,null,null,null,null,null,null,null,null,null,null,null,null,null,null,null,null,null,null,null,"50人以下",null,null,null,null,null,null,null,null,null,null,"９，０００円",null,null,null,null,null,null,null,null,null,null,null,null,"協会受付印"]
[]
[null,null,null,"金",null,null,null,{"$f":"G84","v":""},null,null,null,null,null,null,null,null,null,null,null,null,null,null,null,null,null,null,null,"円也"]
[]
[null,null,null,null,null,null,null,null,null,null,null,null,null,null,null,null,null,null,null,null,null,null,null,null,null,null,null,null,null,null,null,null,null,null,"51人～500人",null,null,null,null,null,null,null,null,null,null,"１５，０００円"]
[]
[]
[]
[null,null,null,null,null,"但し、浄化槽法第７条検査料金",null,null,null,null,null,null,null,null,null,null,null,null,null,null,null,null,null,null,null,null,null,null,null,null,null,null,null,null,"501人以上",null,null,null,null,null,null,null,null,null,null,"３２，０００円"]
[]
[]
[]
[]
[]
[null,null,null,null,null,null,null,null,null,null,null,null,null,null,null,null,null,null,null,null,null,null,null,null,null,null,null,null,null,null,null,null,null,null,null,null,null,null,null,null,null,null,"宇都宮市簗瀬町２３９０番地"]
[]
[]
[null,null,null,null,null,"上記のとおり領収しました。",null,null,null,null,null,null,null,null,null,null,null,null,null,null,null,null,null,null,null,null,null,null,null,null,null,null,null,null,null,null,"電話　０２８（６３３）１６５０番(代)"]
[]
[]
[null,null,null,null,null,null,null,null,null,null,null,null,null,null,null,null,null,null,null,null,null,null,null,null,null,null,null,null,null,null,null,null,null,null,null,null,"一般社団法人　栃 木 県 浄 化 槽 協 会"]
[]
[]
[]
[]
[null,null,null,null,"浄化槽（第7条）法定検査依頼書"]
[]
[]
[]
[]
[]
[null,null,null,null,null,null,null,null,null,null,null,null,null,null,null,null,null,null,null,null,null,null,null,null,null,null,null,null,null,null,null,null,null,null,null,null,null,null,null,null,null,null,null,null,null,null,"支部番号"]
[]
[]
[null,null,null,null,null,null,null,null,null,null,null,null,null,null,null,null,null,null,null,null,null,null,null,null,null,null,null,null,null,null,null,null,null,null,null,null,null,null,null,null,null,null,null,null,null,null,"　　　　年度　　　　　番"]
[null,null,null,null,"栃木県指定検査機関"]
[]
[null,null,null,null,"一般社団法人　栃木県浄化槽協会殿"]
[]
[null,null,null,null,null,null,null,null,null,null,null,null,null,null,null,null,null,null,null,null,null,null,null,null,null,null,null,null,null,null,null,null,null,null,"依頼者（設置者）氏名",null,null,null,null,null,null,null,null,null,null,null,null,null,null,{"$f":"AW15","v":0}]
[]
[]
[null,null,null,null,null,null,null,null,null,null,null,null,null,null,null,null,null,null,null,null,null,null,null,null,null,null,null,null,null,null,null,null,null,null,"手 続 代 行 者"]
[]
[]
[null,null,null,null,null,null,null,null,null,null,null,null,null,null,null,null,null,null,null,null,null,null,null,null,null,null,null,null,null,null,null,null,null,null,"住所",null,null,null,null,null,null,null,null,null,null,null,null,null,null,{"$f":"AW21","v":0}]
[]
[]
[null,null,null,null,null,null,null,null,null,null,null,null,null,null,null,null,null,null,null,null,null,null,null,null,null,null,null,null,null,null,null,null,null,null,"商号又は氏名 ",null,null,null,null,null,null,null,null,null,null,null,null,null,null,{"$f":"AW24","v":0}]
[]
[]
[null,null,null,null,null,null,null,null,null,null,null,null,null,null,null,null,null,null,null,null,null,null,null,null,null,null,null,null,null,null,null,null,null,null,"電話番号",null,null,null,null,null,null,null,null,null,null,null,null,null,null,{"$f":"AW27","v":0}]
[]
[]
[null,null,null,null,null,null,null,null,null,null,null,null,null,null,null,null,null,null,null,null,null,null,null,null,null,null,null,null,null,null,null,null,null,null,"F A X番号",null,null,null,null,null,null,null,null,null,null,null,null,null,null,{"$f":"AW30","v":0}]
[]
[]
[]
[]
[null,null,null,null,"浄化槽法第7条の規定により下記浄化槽の法定検査を依頼します。"]
[]
[]
[null,null,"記"]
[]
[null,null,null,null,"設置者名",null,null,null,null,null,null,null,null,null,null,null,null,null,null,null,null,null,null,{"$f":"W40","v":0}]
[]
[]
[null,null,null,null,"同 住所",null,null,null,null,null,null,null,null,null,null,null,null,null,null,null,null,null,null,{"$f":"W43","v":0}]
[]
[]
[null,null,null,null,"同電話番号",null,null,null,null,null,null,null,null,null,null,null,null,null,null,null,null,null,null,{"$f":"W46","v":0}]
[]
[]
[null,null,null,null,"設置場所",null,null,null,null,null,null,null,null,null,null,null,null,null,null,null,null,null,null,{"$f":"W49","v":0}]
[]
[]
[null,null,null,null,"同名称"]
[]
[]
[null,null,null,null,"人槽",null,null,null,null,null,null,null,null,null,null,null,null,null,null,null,null,null,null,{"$f":"W55","v":0},null,null,null,null,null,null,null,null,null,null,null,null,null,null,null,null,null,null,null,null,null,null,null,null,null,null,null,null,null,null,null,null,null,null,"人槽"]
[]
[]
[null,null,null,null,"建築用途別番号",null,null,null,null,null,null,null,null,null,null,null,null,null,null,null,null,null,null,"（例　個人住宅２－イ）",null,null,null,null,null,null,null,null,null,null,null,null,null,null,null,{"$f":"AM58","v":0}]
[]
[]
[null,null,null,null,"浄化槽使用開始予定年月日",null,null,null,null,null,null,null,null,null,null,null,null,null,null,null,null,null,null,{"$f":"W61","v":0},null,null,null,null,null,null,null,null,null,null,null,"年",null,null,null,{"$f":"AM61","v":0},null,null,null,null,null,null,null,null,null,null,null,"月",null,null,null,{"$f":"BC61","v":0},null,null,null,null,null,null,null,null,null,null,"日"]
[]
[]
[null,null,null,null,"メーカー",null,null,null,null,null,null,null,null,null,null,null,null,null,null,null,null,null,null,{"$f":"メーカー","v":0}]
[]
[]
[null,null,null,null,"浄化槽型式",null,null,null,null,null,null,null,null,null,null,null,null,null,null,null,null,null,null,{"$f":"浄化槽型式","v":0}]
[]
[]
[null,null,null,null,"　（注）１．付近の見取図の写しを1部添付して下さい。（道路及び目標となる地物を明示すること。）"]
[]
[]
[]
[null,null,null,null,"領　　収　　書　（写）"]
[]
[]
[]
[null,null,null,{"$f":"C78","v":0},null,null,null,null,null,null,null,null,null,null,null,null,null,null,null,null,null,null,null,null,null,null,null,"殿",null,null,null,null,null,null,"人　　槽",null,null,null,null,null,null,null,null,null,null,"７条検査料"]
[]
[]
[]
[null,null,null,null,null,null,null,null,null,null,null,null,null,null,null,null,null,null,null,null,null,null,null,null,null,null,null,null,null,null,null,null,null,null,"50人以下",null,null,null,null,null,null,null,null,null,null,"９，０００円",null,null,null,null,null,null,null,null,null,null,null,null,"協会受付印"]
[]
[null,null,null,"金",null,null,null,{"$f":"G84","v":""},null,null,null,null,null,null,null,null,null,null,null,null,null,null,null,null,null,null,null,"円也"]
[]
[null,null,null,null,null,null,null,null,null,null,null,null,null,null,null,null,null,null,null,null,null,null,null,null,null,null,null,null,null,null,null,null,null,null,"51人～500人",null,null,null,null,null,null,null,null,null,null,"１５，０００円"]
[]
[]
[]
[null,null,null,null,null,"但し、浄化槽法第７条検査料金",null,null,null,null,null,null,null,null,null,null,null,null,null,null,null,null,null,null,null,null,null,null,null,null,null,null,null,null,"501人以上",null,null,null,null,null,null,null,null,null,null,"３２，０００円"]
[]
[]
[]
[]
[]
[null,null,null,null,null,null,null,null,null,null,null,null,null,null,null,null,null,null,null,null,null,null,null,null,null,null,null,null,null,null,null,null,null,null,null,null,null,null,null,null,null,null,"宇都宮市簗瀬町２３９０番地"]
[]
[]
[null,null,null,null,null,"上記のとおり領収しました。",null,null,null,null,null,null,null,null,null,null,null,null,null,null,null,null,null,null,null,null,null,null,null,null,null,null,null,null,null,null,"電話　０２８（６３３）１６５０番(代)"]
[]
[]
[null,null,null,null,null,null,null,null,null,null,null,null,null,null,null,null,null,null,null,null,null,null,null,null,null,null,null,null,null,null,null,null,null,null,null,null,"一般社団法人　栃 木 県 浄 化 槽 協 会"]
[]
[]
[]
[]
[null,null,null,null,"浄化槽（第7条）法定検査依頼書"]
[]
[]
[]
[]
[]
[null,null,null,null,null,null,null,null,null,null,null,null,null,null,null,null,null,null,null,null,null,null,null,null,null,null,null,null,null,null,null,null,null,null,null,null,null,null,null,null,null,null,null,null,null,null,"支部番号"]
[]
[]
[null,null,null,null,null,null,null,null,null,null,null,null,null,null,null,null,null,null,null,null,null,null,null,null,null,null,null,null,null,null,null,null,null,null,null,null,null,null,null,null,null,null,null,null,null,null,"　　　　年度　　　　　番"]
[null,null,null,null,"栃木県指定検査機関"]
[]
[null,null,null,null,"一般社団法人　栃木県浄化槽協会殿"]
[]
[null,null,null,null,null,null,null,null,null,null,null,null,null,null,null,null,null,null,null,null,null,null,null,null,null,null,null,null,null,null,null,null,null,null,"依頼者（設置者）氏名"]
[]
[]
[null,null,null,null,null,null,null,null,null,null,null,null,null,null,null,null,null,null,null,null,null,null,null,null,null,null,null,null,null,null,null,null,null,null,"手 続 代 行 者"]
[]
[]
[null,null,null,null,null,null,null,null,null,null,null,null,null,null,null,null,null,null,null,null,null,null,null,null,null,null,null,null,null,null,null,null,null,null,"住所"]
[]
[]
[null,null,null,null,null,null,null,null,null,null,null,null,null,null,null,null,null,null,null,null,null,null,null,null,null,null,null,null,null,null,null,null,null,null,"商号又は氏名 "]
[]
[]
[null,null,null,null,null,null,null,null,null,null,null,null,null,null,null,null,null,null,null,null,null,null,null,null,null,null,null,null,null,null,null,null,null,null,"電話番号"]
[]
[]
[null,null,null,null,null,null,null,null,null,null,null,null,null,null,null,null,null,null,null,null,null,null,null,null,null,null,null,null,null,null,null,null,null,null,"F A X番号"]
[]
[]
[]
[]
[null,null,null,null,"浄化槽法第7条の規定により下記浄化槽の法定検査を依頼します。"]
[]
[]
[null,null,"記"]
[]
[null,null,null,null,"設置者名"]
[]
[]
[null,null,null,null,"同 住所"]
[]
[]
[null,null,null,null,"同電話番号"]
[]
[]
[null,null,null,null,"設置場所"]
[]
[]
[null,null,null,null,"同名称"]
[]
[]
[null,null,null,null,"人槽",null,null,null,null,null,null,null,null,null,null,null,null,null,null,null,null,null,null,null,null,null,null,null,null,null,null,null,null,null,null,null,null,null,null,null,null,null,null,null,null,null,null,null,null,null,null,null,null,null,null,null,null,null,"人槽"]
[]
[]
[null,null,null,null,"建築用途別番号",null,null,null,null,null,null,null,null,null,null,null,null,null,null,null,null,null,null,"（例　個人住宅２－イ）"]
[]
[]
[null,null,null,null,"浄化槽使用開始予定年月日",null,null,null,null,null,null,null,null,null,null,null,null,null,null,null,null,null,null,null,null,null,null,null,null,null,null,null,null,null,null,"年",null,null,null,null,null,null,null,null,null,null,null,null,null,null,null,"月",null,null,null,null,null,null,null,null,null,null,null,null,null,null,"日"]
[]
[]
[null,null,null,null,"メーカー"]
[]
[]
[null,null,null,null,"浄化槽型式"]
[]
[]
[null,null,null,null,"　（注）１．付近の見取図の写しを1部添付して下さい。（道路及び目標となる地物を明示すること。）"]
[]
[]
[]
[null,null,null,null,"領　　収　　書　（写）"]
[]
[]
[]
[null,null,null,{"$f":"依頼者・設置者氏名","v":0},null,null,null,null,null,null,null,null,null,null,null,null,null,null,null,null,null,null,null,null,null,null,null,"殿",null,null,null,null,null,null,"人　　槽",null,null,null,null,null,null,null,null,null,null,"７条検査料"]
[]
[]
[]
[null,null,null,null,null,null,null,null,null,null,null,null,null,null,null,null,null,null,null,null,null,null,null,null,null,null,null,null,null,null,null,null,null,null,"50人以下",null,null,null,null,null,null,null,null,null,null,"９，０００円",null,null,null,null,null,null,null,null,null,null,null,null,"協会受付印"]
[]
[null,null,null,"金",null,null,null,{"$f":"IFERROR(VLOOKUP(W55,Sheet0!A:B,2,TRUE),\"\")","v":""},null,null,null,null,null,null,null,null,null,null,null,null,null,null,null,null,null,null,null,"円也"]
[]
[null,null,null,null,null,null,null,null,null,null,null,null,null,null,null,null,null,null,null,null,null,null,null,null,null,null,null,null,null,null,null,null,null,null,"51人～500人",null,null,null,null,null,null,null,null,null,null,"１５，０００円"]
[]
[]
[]
[null,null,null,null,null,"但し、浄化槽法第７条検査料金",null,null,null,null,null,null,null,null,null,null,null,null,null,null,null,null,null,null,null,null,null,null,null,null,null,null,null,null,"501人以上",null,null,null,null,null,null,null,null,null,null,"３２，０００円"]
[]
[]
[]
[]
[]
[null,null,null,null,null,null,null,null,null,null,null,null,null,null,null,null,null,null,null,null,null,null,null,null,null,null,null,null,null,null,null,null,null,null,null,null,null,null,null,null,null,null,"宇都宮市簗瀬町２３９０番地"]
[]
[]
[null,null,null,null,null,"上記のとおり領収しました。",null,null,null,null,null,null,null,null,null,null,null,null,null,null,null,null,null,null,null,null,null,null,null,null,null,null,null,null,null,null,"電話　０２８（６３３）１６５０番(代)"]
[]
[]
[null,null,null,null,null,null,null,null,null,null,null,null,null,null,null,null,null,null,null,null,null,null,null,null,null,null,null,null,null,null,null,null,null,null,null,null,"一般社団法人　栃 木 県 浄 化 槽 協 会"]

{"sheet":"Sheet0","index":1,"n_rows":498,"n_cols":4,"rows_kept":498,"cut":false,"hidden":false,"merged":[[500,0,516,12]]}
[null,null,null,"tochijou2390"]
[5,9000]
[6,9000]
[7,9000]
[8,9000]
[9,9000]
[10,9000]
[11,9000]
[12,9000]
[13,9000]
[14,9000]
[15,9000]
[16,9000]
[17,9000]
[18,9000]
[19,9000]
[20,9000]
[21,9000]
[22,9000]
[23,9000]
[24,9000]
[25,9000]
[26,9000]
[27,9000]
[28,9000]
[29,9000]
[30,9000]
[31,9000]
[32,9000]
[33,9000]
[34,9000]
[35,9000]
[36,9000]
[37,9000]
[38,9000]
[39,9000]
[40,9000]
[41,9000]
[42,9000]
[43,9000]
[44,9000]
[45,9000]
[46,9000]
[47,9000]
[48,9000]
[49,9000]
[50,9000]
[51,15000]
[52,15000]
[53,15000]
[54,15000]
[55,15000]
[56,15000]
[57,15000]
[58,15000]
[59,15000]
[60,15000]
[61,15000]
[62,15000]
[63,15000]
[64,15000]
[65,15000]
[66,15000]
[67,15000]
[68,15000]
[69,15000]
[70,15000]
[71,15000]
[72,15000]
[73,15000]
[74,15000]
[75,15000]
[76,15000]
[77,15000]
[78,15000]
[79,15000]
[80,15000]
[81,15000]
[82,15000]
[83,15000]
[84,15000]
[85,15000]
[86,15000]
[87,15000]
[88,15000]
[89,15000]
[90,15000]
[91,15000]
[92,15000]
[93,15000]
[94,15000]
[95,15000]
[96,15000]
[97,15000]
[98,15000]
[99,15000]
[100,15000]
[101,15000]
[102,15000]
[103,15000]
[104,15000]
[105,15000]
[106,15000]
[107,15000]
[108,15000]
[109,15000]
[110,15000]
[111,15000]
[112,15000]
[113,15000]
[114,15000]
[115,15000]
[116,15000]
[117,15000]
[118,15000]
[119,15000]
[120,15000]
[121,15000]
[122,15000]
[123,15000]
[124,15000]
[125,15000]
[126,15000]
[127,15000]
[128,15000]
[129,15000]
[130,15000]
[131,15000]
[132,15000]
[133,15000]
[134,15000]
[135,15000]
[136,15000]
[137,15000]
[138,15000]
[139,15000]
[140,15000]
[141,15000]
[142,15000]
[143,15000]
[144,15000]
[145,15000]
[146,15000]
[147,15000]
[148,15000]
[149,15000]
[150,15000]
[151,15000]
[152,15000]
[153,15000]
[154,15000]
[155,15000]
[156,15000]
[157,15000]
[158,15000]
[159,15000]
[160,15000]
[161,15000]
[162,15000]
[163,15000]
[164,15000]
[165,15000]
[166,15000]
[167,15000]
[168,15000]
[169,15000]
[170,15000]
[171,15000]
[172,15000]
[173,15000]
[174,15000]
[175,15000]
[176,15000]
[177,15000]
[178,15000]
[179,15000]
[180,15000]
[181,15000]
[182,15000]
[183,15000]
[184,15000]
[185,15000]
[186,15000]
[187,15000]
[188,15000]
[189,15000]
[190,15000]
[191,15000]
[192,15000]
[193,15000]
[194,15000]
[195,15000]
[196,15000]
[197,15000]
[198,15000]
[199,15000]
[200,15000]
[201,15000]
[202,15000]
[203,15000]
[204,15000]
[205,15000]
[206,15000]
[207,15000]
[208,15000]
[209,15000]
[210,15000]
[211,15000]
[212,15000]
[213,15000]
[214,15000]
[215,15000]
[216,15000]
[217,15000]
[218,15000]
[219,15000]
[220,15000]
[221,15000]
[222,15000]
[223,15000]
[224,15000]
[225,15000]
[226,15000]
[227,15000]
[228,15000]
[229,15000]
[230,15000]
[231,15000]
[232,15000]
[233,15000]
[234,15000]
[235,15000]
[236,15000]
[237,15000]
[238,15000]
[239,15000]
[240,15000]
[241,15000]
[242,15000]
[243,15000]
[244,15000]
[245,15000]
[246,15000]
[247,15000]
[248,15000]
[249,15000]
[250,15000]
[251,15000]
[252,15000]
[253,15000]
[254,15000]
[255,15000]
[256,15000]
[257,15000]
[258,15000]
[259,15000]
[260,15000]
[261,15000]
[262,15000]
[263,15000]
[264,15000]
[265,15000]
[266,15000]
[267,15000]
[268,15000]
[269,15000]
[270,15000]
[271,15000]
[272,15000]
[273,15000]
[274,15000]
[275,15000]
[276,15000]
[277,15000]
[278,15000]
[279,15000]
[280,15000]
[281,15000]
[282,15000]
[283,15000]
[284,15000]
[285,15000]
[286,15000]
[287,15000]
[288,15000]
[289,15000]
[290,15000]
[291,15000]
[292,15000]
[293,15000]
[294,15000]
[295,15000]
[296,15000]
[297,15000]
[298,15000]
[299,15000]
[300,15000]
[301,15000]
[302,15000]
[303,15000]
[304,15000]
[305,15000]
[306,15000]
[307,15000]
[308,15000]
[309,15000]
[310,15000]
[311,15000]
[312,15000]
[313,15000]
[314,15000]
[315,15000]
[316,15000]
[317,15000]
[318,15000]
[319,15000]
[320,15000]
[321,15000]
[322,15000]
[323,15000]
[324,15000]
[325,15000]
[326,15000]
[327,15000]
[328,15000]
[329,15000]
[330,15000]
[331,15000]
[332,15000]
[333,15000]
[334,15000]
[335,15000]
[336,15000]
[337,15000]
[338,15000]
[339,15000]
[340,15000]
[341,15000]
[342,15000]
[343,15000]
[344,15000]
[345,15000]
[346,15000]
[347,15000]
[348,15000]
[349,15000]
[350,15000]
[351,15000]
[352,15000]
[353,15000]
[354,15000]
[355,15000]
[356,15000]
[357,15000]
[358,15000]
[359,15000]
[360,15000]
[361,15000]
[362,15000]
[363,15000]
[364,15000]
[365,15000]
[366,15000]
[367,15000]
[368,15000]
[369,15000]
[370,15000]
[371,15000]
[372,15000]
[373,15000]
[374,15000]
[375,15000]
[376,15000]
[377,15000]
[378,15000]
[379,15000]
[380,15000]
[381,15000]
[382,15000]
[383,15000]
[384,15000]
[385,15000]
[386,15000]
[387,15000]
[388,15000]
[389,15000]
[390,15000]
[391,15000]
[392,15000]
[393,15000]
[394,15000]
[395,15000]
[396,15000]
[397,15000]
[398,15000]
[399,15000]
[400,15000]
[401,15000]
[402,15000]
[403,15000]
[404,15000]
[405,15000]
[406,15000]
[407,15000]
[408,15000]
[409,15000]
[410,15000]
[411,15000]
[412,15000]
[413,15000]
[414,15000]
[415,15000]
[416,15000]
[417,15000]
[418,15000]
[419,15000]
[420,15000]
[421,15000]
[422,15000]
[423,15000]
[424,15000]
[425,15000]
[426,15000]
[427,15000]
[428,15000]
[429,15000]
[430,15000]
[431,15000]
[432,15000]
[433,15000]
[434,15000]
[435,15000]
[436,15000]
[437,15000]
[438,15000]
[439,15000]
[440,15000]
[441,15000]
[442,15000]
[443,15000]
[444,15000]
[445,15000]
[446,15000]
[447,15000]
[448,15000]
[449,15000]
[450,15000]
[451,15000]
[452,15000]
[453,15000]
[454,15000]
[455,15000]
[456,15000]
[457,15000]
[458,15000]
[459,15000]
[460,15000]
[461,15000]
[462,15000]
[463,15000]
[464,15000]
[465,15000]
[466,15000]
[467,15000]
[468,15000]
[469,15000]
[470,15000]
[471,15000]
[472,15000]
[473,15000]
[474,15000]
[475,15000]
[476,15000]
[477,15000]
[478,15000]
[479,15000]
[480,15000]
[481,15000]
[482,15000]
[483,15000]
[484,15000]
[485,15000]
[486,15000]
[487,15000]
[488,15000]
[489,15000]
[490,15000]
[491,15000]
[492,15000]
[493,15000]
[494,15000]
[495,15000]
[496,15000]
[497,15000]
[498,15000]
[499,15000]
[500,15000]
[501,32000]